fUSD/lending_fUSD_20250125
["ID","MTS","AMOUNT","RATE_DAILY","PERIOD"]
[350281657,1737766240649,-500.0,0.00019869,2]
[350281658,1737766240659,-500.0,0.00019869,2]
[350281659,1737766240668,-500.0,0.00019869,2]
[350281660,1737766240677,-500.0,0.00019869,2]
[350281661,1737766240687,-1586.5,0.00019869,2]
[350281662,1737766240696,-500.0,0.00019869,2]
[350281663,1737766240705,-500.0,0.00019869,2]
[350281664,1737766240715,-500.0,0.00019869,2]
[350281665,1737766240724,-500.0,0.00019869,2]
[350281666,1737766240733,-500.0,0.00019869,2]
[350281667,1737766240743,-500.0,0.00019869,2]
[350281668,1737766240755,-500.0,0.00019869,2]
[350281669,1737766240764,-500.0,0.00019869,2]
[350281670,1737766240774,-500.0,0.00019869,2]
[350281671,1737766240784,-463.61,0.00019869,2]
[350281672,1737766240794,-500.0,0.00019869,2]
[350281673,1737766240803,-564.49,0.00019869,2]
[350281674,1737766240813,-500.0,0.00019869,2]
[350281675,1737766240823,-729.96,0.00019869,2]
[350281676,1737766240833,-500.0,0.00019869,2]
[350281677,1737766240842,-500.0,0.00019869,2]
[350281678,1737766240851,-544.58,0.00019869,2]
[350281679,1737766240860,-511.55,0.00019869,2]
[350281680,1737766240870,-652.14,0.00019869,2]
[350281681,1737766240881,-500.0,0.00019869,2]
[350281682,1737766240894,-500.0,0.00019869,2]
[350281683,1737766240904,-507.57022789,0.00019869,2]
[350281684,1737766240913,-500.0,0.00019869,2]
[350281685,1737766240923,-500.0,0.00019869,2]
[350281686,1737766240932,-500.0,0.00019869,2]
[350281687,1737766240942,-500.0,0.00019869,2]
[350281688,1737766240951,-500.0,0.00019869,2]
[350281689,1737766240961,-500.0,0.00019869,2]
[350281690,1737766240970,-500.0,0.00019869,2]
[350281691,1737766240979,-500.0,0.00019869,2]
[350281692,1737766240988,-916.0,0.00019869,2]
[350281693,1737766240996,-500.0,0.00019869,2]
[350281694,1737766241005,-500.0,0.00019869,2]
[350281695,1737766241015,-151.0,0.00019869,2]
[350281696,1737766241024,-151.0,0.00019869,2]
[350281697,1737766241034,-500.0,0.00019869,2]
[350281698,1737766241045,-151.0,0.00019869,2]
[350281699,1737766241055,-151.0,0.00019869,2]
[350281700,1737766241064,-1094.4,0.00019869,2]
[350281701,1737766241074,-22091.36608135,0.0001987,2]
[350281702,1737766241089,-1079.078,0.0001987,2]
[350281703,1737766241104,-1802.36640994,0.0001987,2]
[350281704,1737766241115,-2007.99908828,0.0001987,2]
[350281705,1737766241127,-328.9999999,0.0001987,2]
[350281706,1737766241137,-74949.6721484,0.0001987,2]
[350281707,1737766241147,-151.0,0.0001987,2]
[350281708,1737766241156,-22334.79869678,0.00019886,2]
[350281709,1737766241166,-162.17120802,0.000199,2]
[350281710,1737766241175,-193.27023946,0.000199,2]
[350281711,1737766241184,-268.41341045,0.000199,2]
[350281712,1737766241194,-2500.0,0.000199,7]
[350281713,1737766241203,-442.32459973,0.000199,2]
[350281714,1737766241212,-151.0,0.000199,2]
[350281715,1737766241221,-720.5320365,0.000199,2]
[350281716,1737766241231,-232.17837316,0.000199,2]
[350281717,1737766241240,-442.32459973,0.00019972,2]
[350281718,1737766241250,-500.0,0.00019972,2]
[350281719,1737766241259,-288.48,0.00019972,2]
[350281720,1737766241268,-500.0,0.00019972,2]
[350281721,1737766241278,-151.0,0.00019972,2]
[350281722,1737766241289,-254.075764,0.00019972,2]
[350281723,1737766241299,-500.0,0.00019972,2]
[350281724,1737766241308,-644.49252756,0.00019972,2]
[350281725,1737766241317,-500.0,0.00019972,2]
[350281726,1737766241327,-500.0,0.00019972,2]
[350281727,1737766241336,-500.0,0.00019972,2]
[350281728,1737766241345,-500.0,0.00019972,2]
[350281729,1737766241355,-288.89174432,0.00019972,2]
[350281730,1737766241364,-589.74,0.00019972,2]
[350281731,1737766241373,-500.0,0.00019972,2]
[350281732,1737766241383,-500.0,0.00019972,2]
[350281733,1737766241393,-500.0,0.00019972,2]
[350281734,1737766241403,-230.75702182,0.00019972,2]
[350281735,1737766241413,-501.75918858,0.00019972,2]
[350281736,1737766241423,-500.0,0.00019972,2]
[350281737,1737766241432,-500.0,0.00019972,2]
[350281738,1737766241442,-500.0,0.00019972,2]
[350281739,1737766241451,-500.0,0.00019973,2]
[350281740,1737766241461,-2979.9166705,0.00019986,2]
[350281741,1737766241470,-2399.6961623,0.00019986,2]
[350281742,1737766241480,-1819.4756541,0.00019986,2]
[350281743,1737766241489,-7706.5267598,0.00019986,2]
[350281744,1737766241499,-6205.9865208,0.00019986,2]
[350281745,1737766241508,-4705.4462818,0.00019986,2]
[350281746,1737766241518,-203.659096,0.00019986,2]
[350281747,1737766241527,-2829.78017399,0.00019987,3]
[350281748,1737766241536,-2057.36717219,0.0001999,2]
[350281749,1737766241550,-150.56,0.0001999,2]
[350281750,1737766241560,-150.56,0.0001999,2]
[350281751,1737766241570,-150.56,0.0001999,2]
[350281752,1737766241579,-150.56,0.0001999,2]
[350281753,1737766241589,-150.56,0.0001999,2]
[350281754,1737766241598,-150.56,0.0001999,2]
[350281755,1737766241607,-150.56,0.0001999,2]
[350281756,1737766241617,-150.56,0.0001999,2]
[350281757,1737766241627,-150.56,0.0001999,2]
[350281758,1737766241637,-150.56,0.0001999,2]
[350281759,1737766241646,-150.56,0.0001999,2]
[350281760,1737766241657,-33191.5,0.00019999,2]
[350281761,1737766241666,-966.0,0.0002,2]
[350281762,1737766241676,-1014950.14357606,0.0002,2]
[350281763,1737766241686,-2110.0,0.0002,2]
[350281764,1737766241695,-11007.69870366,0.0002,2]
[350281765,1737766241704,-813.95634871,0.0002,2]
[350281766,1737766241714,-8000.0,0.0002,4]
[350281767,1737766241724,-49377.67687837,0.0002,2]
[350281768,1737766241733,-16529.82426298,0.0002,7]
[350281769,1737766241743,-199019.95705515,0.0002,2]
[350281770,1737766241756,-5881.05728122,0.0002,2]
[350281771,1737766241766,-932.2252169,0.0002,21]
[350281772,1737766241775,-150.0,0.0002,7]
[350281773,1737766241785,-700.0,0.0002,2]
[350281774,1737766241796,-700.0,0.0002,2]
[350281775,1737766241806,-700.0,0.0002,2]
[350281776,1737766241815,-491.70027711,0.0002,2]
[350281777,1737766241825,-150.0,0.0002,4]
[350281778,1737766241834,-150.0,0.0002,4]
[350281779,1737766241843,-150.0,0.0002,4]
[350281780,1737766241852,-150.0,0.0002,4]
[350281781,1737766241862,-159.0,0.0002,2]
[350281782,1737766241871,-1373.84,0.0002,2]
[350281783,1737766241880,-250.0,0.0002,2]
[350281784,1737766241890,-250.0,0.0002,2]
[350281785,1737766241899,-250.0,0.0002,2]
[350281786,1737766241908,-250.0,0.0002,2]
[350281787,1737766241918,-250.0,0.0002,2]
[350281788,1737766241927,-250.0,0.0002,2]
[350281789,1737766241936,-250.0,0.0002,2]
[350281790,1737766241945,-250.0,0.0002,2]
[350281791,1737766241955,-250.0,0.0002,2]
[350281792,1737766241964,-250.0,0.0002,2]
[350281793,1737766241973,-250.0,0.0002,2]
[350281794,1737766241984,-250.0,0.0002,2]
[350281795,1737766241993,-250.0,0.0002,2]
[350281796,1737766242002,-250.0,0.0002,2]
[350281797,1737766242012,-250.0,0.0002,2]
[350281798,1737766242022,-250.0,0.0002,2]
[350281799,1737766242032,-250.0,0.0002,2]
[350281800,1737766242043,-250.0,0.0002,2]
[350281801,1737766242053,-250.0,0.0002,2]
[350281802,1737766242062,-250.0,0.0002,2]
[350281803,1737766242071,-250.0,0.0002,2]
[350281804,1737766242081,-250.0,0.0002,2]
[350281805,1737766242091,-250.0,0.0002,2]
[350281806,1737766242100,-250.0,0.0002,2]
[350281807,1737766242110,-250.0,0.0002,2]
[350281808,1737766242119,-250.0,0.0002,2]
[350281809,1737766242128,-250.0,0.0002,2]
[350281810,1737766242137,-250.0,0.0002,2]
[350281811,1737766242147,-250.0,0.0002,2]
[350281812,1737766242155,-250.0,0.0002,2]
[350281813,1737766242164,-250.0,0.0002,2]
[350281814,1737766242173,-250.0,0.0002,2]
[350281815,1737766242183,-250.0,0.0002,2]
[350281816,1737766242192,-250.0,0.0002,2]
[350281817,1737766242201,-250.0,0.0002,2]
[350281818,1737766242211,-478.549795,0.00020006,2]
[350281819,1737766242220,-490.821105,0.00020006,2]
[350281820,1737766242243,-500.0,0.00020006,2]
[350281821,1737766242256,-500.0,0.00020006,2]
[350281822,1737766242265,-576.23,0.00020006,2]
[350281823,1737766242274,-385.9,0.00020006,2]
[350281824,1737766242283,-250.12,0.00020006,2]
[350281825,1737766242294,-491.86041719,0.00020006,2]
[350281826,1737766242303,-500.0,0.00020006,2]
[350281827,1737766242313,-500.0,0.00020006,2]
[350281829,1737766242322,-500.0,0.00020006,2]
[350281830,1737766242331,-500.0,0.00020006,2]
[350281831,1737766242341,-500.0,0.00020006,2]
[350281832,1737766242351,-500.0,0.00020006,2]
[350281833,1737766242360,-565.0089185,0.00020006,2]
[350281834,1737766242369,-500.0,0.00020006,2]
[350281835,1737766242379,-500.0,0.00020006,2]
[350281836,1737766242388,-500.0,0.00020006,2]
[350281837,1737766242398,-500.0,0.00020006,2]
[350281838,1737766242413,-500.0,0.00020006,2]
[350281840,1737766242423,-500.0,0.00020006,2]
[350281843,1737766242437,-500.0,0.00020006,2]
[350281846,1737766242446,-500.0,0.00020006,2]
[350281849,1737766242457,-500.0,0.00020006,2]
[350281851,1737766242466,-500.0,0.00020006,2]
[350281852,1737766242475,-500.0,0.00020006,2]
[350281853,1737766242485,-500.0,0.00020006,2]
[350281854,1737766242494,-500.0,0.00020006,2]
[350281855,1737766242503,-500.0,0.00020006,2]
[350281856,1737766242512,-500.0,0.00020006,2]
[350281857,1737766242522,-500.0,0.00020006,2]
[350281859,1737766242531,-500.0,0.00020006,2]
[350281861,1737766242542,-500.0,0.00020006,2]
[350281863,1737766242551,-500.0,0.00020006,2]
[350281865,1737766242560,-500.0,0.00020006,2]
[350281867,1737766242570,-209.35,0.00020006,2]
[350281868,1737766242580,-500.0,0.00020006,2]
[350281869,1737766242590,-500.0,0.00020006,2]
[350281870,1737766242607,-500.0,0.00020006,2]
[350281872,1737766242622,-500.0,0.00020006,2]
[350281874,1737766242632,-500.0,0.00020006,2]
[350281876,1737766242641,-629.29722967,0.00020006,2]
[350281877,1737766242650,-500.0,0.00020006,2]
[350281878,1737766242659,-630.89,0.00020006,2]
[350281879,1737766242668,-500.0,0.00020006,2]
[350281880,1737766242678,-500.0,0.00020006,2]
[350281881,1737766242687,-500.0,0.00020006,2]
[350281882,1737766242696,-500.0,0.00020006,2]
[350281883,1737766242706,-500.0,0.00020006,2]
[350281884,1737766242715,-613.79,0.00020006,2]
[350281885,1737766242724,-500.0,0.00020006,2]
[350281886,1737766242733,-500.0,0.00020006,2]
[350281887,1737766242743,-500.0,0.00020006,2]
[350281888,1737766242755,-500.0,0.00020006,2]
[350281889,1737766242764,-500.0,0.00020006,2]
[350281890,1737766242773,-666.7,0.00020006,2]
[350281891,1737766242782,-500.0,0.00020006,2]
[350281892,1737766242792,-500.0,0.00020006,2]
[350281893,1737766242802,-500.0,0.00020006,2]
[350281894,1737766242811,-500.0,0.00020006,2]
[350281895,1737766242820,-876.65,0.00020006,2]
[350281896,1737766242830,-686.14,0.00020006,2]
[350281897,1737766242839,-500.0,0.00020006,2]
[350281898,1737766242848,-500.0,0.00020006,2]
[350281899,1737766242857,-500.0,0.00020006,2]
[350281900,1737766242868,-500.0,0.00020006,2]
[350281901,1737766242877,-500.0,0.00020006,2]
[350281902,1737766242886,-828.64,0.00020006,2]
[350281903,1737766242895,-775.57,0.00020006,2]
[350281904,1737766242904,-500.0,0.00020006,2]
[350281905,1737766242913,-500.0,0.00020006,2]
[350281906,1737766242923,-672.65,0.00020006,2]
[350281907,1737766242932,-501.05,0.00020006,2]
[350281908,1737766242942,-418.86033817,0.00020006,2]
[350281909,1737766242952,-500.0,0.00020006,2]
[350281910,1737766242961,-694.2,0.00020006,2]
[350281911,1737766242971,-989.16,0.00020006,2]
[350281912,1737766242980,-500.0,0.00020006,2]
[350281913,1737766242990,-1184.1,0.00020006,2]
[350281914,1737766243000,-500.0,0.00020006,2]
[350281915,1737766243009,-500.0,0.00020006,2]
[350281916,1737766243018,-500.0,0.00020006,2]
[350281917,1737766243027,-1009.71,0.00020006,2]
[350281918,1737766243036,-1377.37,0.00020006,2]
[350281919,1737766243047,-500.0,0.00020006,2]
[350281920,1737766243057,-500.0,0.00020006,2]
[350281921,1737766243066,-500.0,0.00020006,2]
[350281922,1737766243075,-609.41,0.00020006,2]
[350281923,1737766243084,-500.0,0.00020006,2]
[350281925,1737766243093,-500.0,0.00020006,2]
[350281927,1737766243103,-700.38,0.00020006,2]
[350281929,1737766243112,-500.0,0.00020006,2]
[350281931,1737766243121,-500.0,0.00020006,2]
[350281933,1737766243130,-1237.33,0.00020006,2]
[350281935,1737766243139,-500.0,0.00020006,2]
[350281937,1737766243148,-500.0,0.00020006,2]
[350281939,1737766243158,-500.0,0.00020006,2]
[350281941,1737766243167,-500.0,0.00020006,2]
[350281943,1737766243176,-366.45912186,0.00020006,2]
[350281945,1737766243185,-757.47,0.00020006,2]
[350281947,1737766243194,-500.0,0.00020006,2]
[350281949,1737766243204,-500.0,0.00020006,2]
[350281951,1737766243213,-500.0,0.00020006,2]
[350281953,1737766243223,-500.0,0.00020006,2]
[350281955,1737766243232,-500.0,0.00020006,2]
[350281957,1737766243241,-528.77,0.00020006,2]
[350281959,1737766243250,-500.0,0.00020006,2]
[350281961,1737766243260,-500.0,0.00020006,2]
[350281963,1737766243269,-500.0,0.00020006,2]
[350281965,1737766243278,-500.0,0.00020006,2]
[350281967,1737766243287,-500.0,0.00020006,2]
[350281969,1737766243297,-500.0,0.00020006,2]
[350281970,1737766243306,-600.49,0.00020006,2]
[350281971,1737766243315,-500.0,0.00020006,2]
[350281972,1737766243324,-500.0,0.00020006,2]
[350281973,1737766243334,-500.0,0.00020006,2]
[350281974,1737766243343,-500.0,0.00020006,2]
[350281975,1737766243352,-757.12,0.00020006,2]
[350281976,1737766243362,-678.28,0.00020006,2]
[350281977,1737766243371,-333.13,0.00020006,2]
[350281978,1737766243380,-500.0,0.00020006,2]
[350281979,1737766243390,-664.78,0.00020006,2]
[350281980,1737766243399,-500.0,0.00020006,2]
[350281981,1737766243409,-1194.58,0.00020006,2]
[350281982,1737766243419,-500.0,0.00020006,2]
[350281983,1737766243428,-1260.01,0.00020006,2]
[350281984,1737766243438,-500.0,0.00020006,2]
[350281985,1737766243448,-500.0,0.00020006,2]
[350281986,1737766243457,-500.0,0.00020006,2]
[350281987,1737766243466,-500.0,0.00020006,2]
[350281988,1737766243476,-588.0,0.00020006,2]
[350281989,1737766243486,-500.0,0.00020006,2]
[350281990,1737766243495,-500.0,0.00020006,2]
[350281991,1737766243504,-500.0,0.00020006,2]
[350281992,1737766243514,-500.0,0.00020006,2]
[350281993,1737766243523,-1586.5,0.00020006,2]
[350281994,1737766243533,-500.0,0.00020006,2]
[350281995,1737766243543,-500.0,0.00020006,2]
[350281996,1737766243553,-239.75,0.00020006,2]
[350281997,1737766243562,-500.0,0.00020006,2]
[350281998,1737766243571,-500.0,0.00020006,2]
[350281999,1737766243581,-500.0,0.00020006,2]
[350282000,1737766243591,-500.0,0.00020006,2]
[350282001,1737766243600,-500.0,0.00020006,2]
[350282002,1737766243609,-500.0,0.00020006,2]
[350282003,1737766243619,-564.49,0.00020006,2]
[350282004,1737766243629,-729.96,0.00020006,2]
[350282005,1737766243638,-500.0,0.00020006,2]
[350282006,1737766243648,-500.0,0.00020006,2]
[350282007,1737766243658,-544.58,0.00020006,2]
[350282008,1737766243667,-511.55,0.00020006,2]
[350282009,1737766243677,-652.14,0.00020006,2]
[350282010,1737766243686,-500.0,0.00020006,2]
[350282011,1737766243696,-500.0,0.00020006,2]
[350282012,1737766243706,-500.0,0.00020006,2]
[350282013,1737766243716,-500.0,0.00020006,2]
[350282014,1737766243870,-500.0,0.00020006,2]
[350282015,1737766243881,-500.0,0.00020006,2]
[350282016,1737766243891,-500.0,0.00020006,2]
[350282017,1737766243900,-916.0,0.00020006,2]
[350282018,1737766243909,-500.0,0.00020006,2]
[350282019,1737766243920,-505.69340982,0.00020006,2]
[350282020,1737766243929,-500.0,0.00020006,2]
[350282021,1737766243939,-1094.4,0.00020006,2]
[350282022,1737766243948,-442.32459973,0.00020043,2]
[350282023,1737766243958,-22334.79869675,0.00020043,2]
[350282024,1737766243967,-295.0,0.00020057,2]
[350282025,1737766243977,-150.0,0.0002006,4]
[350282026,1737766243988,-449.38599006,0.00020109,2]
[350282027,1737766243997,-500.0,0.00020109,2]
[350282028,1737766244006,-500.0,0.00020109,2]
[350282029,1737766244015,-500.0,0.00020109,2]
[350282030,1737766244025,-290.43,0.00020109,2]
[350282031,1737766244034,-314.77,0.00020109,2]
[350282032,1737766244044,-500.0,0.00020109,2]
[350282033,1737766244053,-500.0,0.00020109,2]
[350282034,1737766244063,-500.0,0.00020109,2]
[350282035,1737766244073,-150.0,0.00020116,4]
[350282036,1737766244083,-150.0,0.0002012,4]
[350282037,1737766244093,-152.0,0.00020122,4]
[350282038,1737766244103,-5988.7876877,0.00020123,2]
[350282039,1737766244112,-478.549795,0.00020143,2]
[350282040,1737766244122,-490.821105,0.00020143,2]
[350282041,1737766244132,-500.0,0.00020143,2]
[350282042,1737766244141,-500.0,0.00020143,2]
[350282043,1737766244150,-165.811224,0.00020143,2]
[350282044,1737766244159,-500.0,0.00020143,2]
[350282045,1737766244168,-500.0,0.00020143,2]
[350282046,1737766244178,-500.0,0.00020143,2]
[350282047,1737766244188,-500.0,0.00020143,2]
[350282048,1737766244197,-500.0,0.00020143,2]
[350282049,1737766244206,-500.0,0.00020143,2]
[350282050,1737766244216,-500.0,0.00020143,2]
[350282051,1737766244226,-642.9,0.00020143,2]
[350282052,1737766244235,-500.0,0.00020143,2]
[350282053,1737766244245,-380.68,0.00020143,2]
[350282054,1737766244255,-500.0,0.00020143,2]
[350282055,1737766244265,-599.3433423,0.00020143,2]
[350282056,1737766244274,-500.0,0.00020143,2]
[350282057,1737766244284,-500.0,0.00020143,2]
[350282058,1737766244295,-500.0,0.00020143,2]
[350282059,1737766244304,-500.0,0.00020143,2]
[350282060,1737766244314,-500.0,0.00020143,2]
[350282061,1737766244323,-500.0,0.00020143,2]
[350282062,1737766244333,-252.48980744,0.00020143,2]
[350282063,1737766244342,-500.0,0.00020143,2]
[350282064,1737766244352,-500.0,0.00020143,2]
[350282065,1737766244362,-500.0,0.00020143,2]
[350282066,1737766244371,-500.0,0.00020143,2]
[350282067,1737766244380,-500.0,0.00020143,2]
[350282068,1737766244389,-583.01811906,0.00020143,2]
[350282069,1737766244399,-500.0,0.00020143,2]
[350282070,1737766244408,-263.46577316,0.00020143,2]
[350282071,1737766244417,-500.0,0.00020143,2]
[350282072,1737766244427,-500.0,0.00020143,2]
[350282073,1737766244437,-500.0,0.00020143,2]
[350282074,1737766244446,-613.79,0.00020143,2]
[350282075,1737766244455,-500.0,0.00020143,2]
[350282076,1737766244464,-500.0,0.00020143,2]
[350282077,1737766244474,-284.81312807,0.00020143,2]
[350282078,1737766244484,-500.0,0.00020143,2]
[350282079,1737766244493,-666.7,0.00020143,2]
[350282080,1737766244502,-542.47,0.00020143,2]
[350282081,1737766244511,-500.0,0.00020143,2]
[350282082,1737766244521,-607.33,0.00020143,2]
[350282083,1737766244530,-500.0,0.00020143,2]
[350282084,1737766244541,-876.65,0.00020143,2]
[350282085,1737766244551,-686.14,0.00020143,2]
[350282086,1737766244561,-500.0,0.00020143,2]
[350282087,1737766244571,-500.0,0.00020143,2]
[350282088,1737766244582,-458.91862486,0.00020143,2]
[350282089,1737766244592,-500.0,0.00020143,2]
[350282090,1737766244602,-500.0,0.00020143,2]
[350282091,1737766244611,-828.64,0.00020143,2]
[350282092,1737766244621,-775.57,0.00020143,2]
[350282093,1737766244630,-500.0,0.00020143,2]
[350282094,1737766244640,-500.0,0.00020143,2]
[350282095,1737766244650,-672.65,0.00020143,2]
[350282096,1737766244660,-501.05,0.00020143,2]
[350282097,1737766244670,-500.0,0.00020143,2]
[350282098,1737766244680,-694.2,0.00020143,2]
[350282099,1737766244690,-989.16,0.00020143,2]
[350282100,1737766244700,-500.0,0.00020143,2]
[350282101,1737766244709,-1184.1,0.00020143,2]
[350282102,1737766244719,-427.72841838,0.00020143,2]
[350282103,1737766244729,-1009.71,0.00020143,2]
[350282104,1737766244739,-1377.37,0.00020143,2]
[350282105,1737766244750,-500.0,0.00020143,2]
[350282106,1737766244762,-500.0,0.00020143,2]
[350282107,1737766244772,-500.0,0.00020143,2]
[350282108,1737766244781,-500.0,0.00020143,2]
[350282109,1737766244791,-500.0,0.00020143,2]
[350282110,1737766244800,-700.38,0.00020143,2]
[350282111,1737766244810,-409.71,0.00020143,2]
[350282112,1737766244820,-500.0,0.00020143,2]
[350282113,1737766244830,-1237.33,0.00020143,2]
[350282114,1737766244839,-490.15,0.00020143,2]
[350282115,1737766244848,-500.0,0.00020143,2]
[350282116,1737766244858,-757.47,0.00020143,2]
[350282117,1737766244867,-500.0,0.00020143,2]
[350282118,1737766244876,-562.55627863,0.00020143,2]
[350282119,1737766244885,-500.0,0.00020143,2]
[350282120,1737766244894,-500.0,0.00020143,2]
[350282121,1737766244903,-198.5189144,0.00020143,2]
[350282122,1737766244913,-528.77,0.00020143,2]
[350282123,1737766244922,-500.0,0.00020143,2]
[350282124,1737766244932,-500.0,0.00020143,2]
[350282125,1737766244941,-500.0,0.00020143,2]
[350282126,1737766244951,-278.15125932,0.00020143,2]
[350282127,1737766244960,-599.39,0.00020143,2]
[350282128,1737766244969,-600.49,0.00020143,2]
[350282129,1737766244979,-558.42,0.00020143,2]
[350282130,1737766244990,-500.0,0.00020143,2]
[350282131,1737766244999,-500.0,0.00020143,2]
[350282132,1737766245008,-500.0,0.00020143,2]
[350282133,1737766245017,-757.12,0.00020143,2]
[350282134,1737766245027,-678.28,0.00020143,2]
[350282135,1737766245037,-500.0,0.00020143,2]
[350282136,1737766245047,-664.78,0.00020143,2]
[350282137,1737766245056,-1194.58,0.00020143,2]
[350282138,1737766245066,-500.0,0.00020143,2]
[350282139,1737766245075,-1260.01,0.00020143,2]
[350282140,1737766245085,-211.26,0.00020143,2]
[350282141,1737766245094,-618.55,0.00020143,2]
[350282142,1737766245103,-500.0,0.00020143,2]
[350282143,1737766245112,-500.0,0.00020143,2]
[350282144,1737766245121,-500.0,0.00020143,2]
[350282145,1737766245130,-500.0,0.00020143,2]
[350282146,1737766245139,-500.0,0.00020143,2]
[350282147,1737766245148,-1586.5,0.00020143,2]
[350282148,1737766245157,-500.0,0.00020143,2]
[350282149,1737766245166,-500.0,0.00020143,2]
[350282150,1737766245176,-242.23058958,0.00020143,2]
[350282151,1737766245185,-500.0,0.00020143,2]
[350282152,1737766245194,-500.0,0.00020143,2]
[350282153,1737766245203,-500.0,0.00020143,2]
[350282154,1737766245212,-500.0,0.00020143,2]
[350282155,1737766245221,-564.49,0.00020143,2]
[350282156,1737766245231,-729.96,0.00020143,2]
[350282157,1737766245240,-500.0,0.00020143,2]
[350282158,1737766245249,-500.0,0.00020143,2]
[350282159,1737766245259,-544.58,0.00020143,2]
[350282160,1737766245269,-511.55,0.00020143,2]
[350282161,1737766245279,-652.14,0.00020143,2]
[350282162,1737766245289,-236.14,0.00020143,2]
[350282163,1737766245300,-500.0,0.00020143,2]
[350282165,1737766245310,-500.0,0.00020143,2]
[350282166,1737766245320,-500.0,0.00020143,2]
[350282167,1737766245329,-507.20839173,0.00020143,2]
[350282169,1737766245339,-280.28581002,0.00020143,2]
[350282170,1737766245350,-500.0,0.00020143,2]
[350282171,1737766245360,-916.0,0.00020143,2]
[350282172,1737766245370,-500.0,0.00020143,2]
[350282173,1737766245379,-500.0,0.00020143,2]
[350282174,1737766245389,-1094.4,0.00020143,2]
[350282175,1737766245398,-156.42924986,0.0002015,2]
[350282176,1737766245408,-150.0,0.0002018,4]
[350282177,1737766245417,-22334.79869675,0.000202,2]
[350282178,1737766245427,-150.0,0.00020219,4]
[350282179,1737766245436,-150.0,0.00020232,4]
[350282180,1737766245445,-268.41341043,0.00020233,2]
[350282181,1737766245455,-150.0,0.00020239,4]
[350282182,1737766245464,-500.0,0.00020246,2]
[350282183,1737766245473,-516.25,0.00020246,2]
[350282184,1737766245482,-500.0,0.00020246,2]
[350282186,1737766245492,-500.0,0.00020246,2]
[350282187,1737766245501,-500.0,0.00020246,2]
[350282188,1737766245511,-478.549795,0.0002028,2]
[350282189,1737766245520,-490.821105,0.0002028,2]
[350282190,1737766245530,-500.0,0.0002028,2]
[350282191,1737766245540,-215.83,0.0002028,2]
[350282192,1737766245550,-413.61,0.0002028,2]
[350282193,1737766245560,-512.01893369,0.0002028,2]
[350282194,1737766245569,-324.97,0.0002028,2]
[350282195,1737766245578,-500.0,0.0002028,2]
[350282196,1737766245588,-500.0,0.0002028,2]
[350282197,1737766245597,-500.0,0.0002028,2]
[350282198,1737766245606,-640.69,0.0002028,2]
[350282199,1737766245616,-467.70714748,0.0002028,2]